Workbook

Sheet Cover Page
A1: Repackaging Exposure Model for 1,2-Dichloroethane
A3: CASRN 107-06-2

Sheet ReadMe
B2: Instructions for Using this Spreadsheet
B4: Table of Contents
B5: Worksheet | C5: Description
B6: ReadMe (this worksheet) | C6: Provides instructions to the user on the use of this spreadsheet
B7: Exposure Summary | C7: Provides the exposure results for the baseline scenario from the Monte Carlo simulation. The user must not alter this worksheet.
B8: Exposure Point Summary | C8: Summarizes the Exposure Points and associated parameters used to calculate the amount of annual exposure from each Exposure Point
B9: Exposure Parameters | C9: A list of parameters for the exposure calculations. Allows an advanced user to select between performing a deterministic or Monte Carlo simulation. Monte Carlo formulas on this worksheet are based on the Monte Carlo simulator @Risk. Certain cells will appear with the "#NAME?" error indicator if a user does not have the program @Risk. The user must not alter parameters in this worksheet. Turn Monte Carlo "Off" using the toggle at the top of the sheet to view deterministic calculations (@Risk not needed for this).
B10: Exposure Calcs | C10: Performs the exposure calculations. This worksheet contains @Risk formulas to capture results during a Monte Carlo simulation iteration. Certain cells will appear with the "#NAME?" error indicator if a user does not have the program @Risk. The user must not alter this worksheet.
B11: Exposure Results | C11: Provides exposure results from running the simulation with the specified parameters for the given scenario. Cells will appear with the "#NAME?" error indicator if a user does not have the program @Risk. The user must not alter this worksheet.
B12: Scenario 1_Static | C12: Scenario 1: Fixed number of sites, PV=2,500 lbs Provides static exposure results from running the simulation with the specified parameters for the given scenario. @Risk not needed to view.
B13: Scenario 2_Static | C13: Scenario 2: Fixed number of sites, PV=25,000 lbs Provides static exposure results from running the simulation with the specified parameters for the given scenario. @Risk not needed to view.
B16: General Notes/Assumptions
B17: General 1,2-Dichloroethane (1,2-DCA) Info: - Total PV = 30,000,000,000 - <40,000,000,000 lb (each year from 2016-2019) (Manufactured domestically) - Number of sites that repackage 1,2-dichloroethane are unknown; assume 1,2-dichloroethane only has one import site based on 2020 CDR (only one manufacturing site). - PV for Repackaging is unknown; assumed PV of 2,500 to 25,000 lb/site based on CDR reporting threshold of 25,000 lb/yr (Scenario 2) and also assuming a 10% of threshold PV of 2,500 lb/yr (Scenario 1). - 1,2-Dichloroethane is a volatile liquid, VP = 78.9 torr; MW = 98.96 g/mol; assume 1,2-dichloroethane imported in pure liquid form.
B18: Applied ChemSTEER User Guide to define General Methodology models to determine equations and their parameters for inhalation exposure routes.
B19: Potential for 1,2-dichloroethane to be imported and stored in drums, which would only constitute repackaging into smaller containers; conservative estimate that 1,2-dichloroethane imported in larger quantity and transferred to drums first.
B20: Release points identified from the July 2022 Repackaging GS were the basis for determining all inhalation exposure points.
B21: When the EPA/OPPT Mass Balance Inhalation Model is used for assessing exposure, the exposure duration 'h', uses the same exposure duration used when assessing the release durations.

Sheet Exposure Summary
A1: Exposure Summary - 50th and 95th Percentile estimates
A2: Scenario 1: PV = 1134 kg/yr
A3: Exposure Point | B3: Mass Concentration [mg/m^3] | D3: Volume Concentration [ppm] | F3: Exposure Days per Year | H3: Exposure Hours per Day | J3: 8-hr TWA | L3: 24-hr TWA
B4: 50th Percentile | C4: 95th Percentile | D4: 50th Percentile | E4: 95th Percentile | F4: Minimum | G4: Maximum | H4: Minimum | I4: Maximum | J4: 50th Percentile | K4: 95th Percentile | L4: 50th Percentile | M4: 95th Percentile
A5: A. Emptying (drums) | B5: =INDEX('Scenario 1_Static'!$B$35:$D$41,MATCH(B$4,'Scenario 1_Static'!$A$35:$A$41, 0), MATCH($A5, 'Scenario 1_Static'!$B$32:$D$32,0)) -> 388.5339734 | C5: =INDEX('Scenario 1_Static'!$B$35:$D$41,MATCH(C$4,'Scenario 1_Static'!$A$35:$A$41, 0), MATCH($A5, 'Scenario 1_Static'!$B$32:$D$32,0)) -> 1477.798656 | D5: =INDEX('Scenario 1_Static'!$B$44:$D$50,MATCH(D$4,'Scenario 1_Static'!$A$44:$A$50, 0), MATCH($A5, 'Scenario 1_Static'!$B$32:$D$32,0)) -> 95.9949035 | E5: =INDEX('Scenario 1_Static'!$B$44:$D$50,MATCH(E$4,'Scenario 1_Static'!$A$44:$A$50, 0), MATCH($A5, 'Scenario 1_Static'!$B$32:$D$32,0)) -> 365.1190091 | F5: ='Scenario 1_Static'!G16 -> 3 | G5: ='Scenario 1_Static'!G11 -> 12 | H5: ='Scenario 1_Static'!G26 -> 0.1186372688 | I5: ='Scenario 1_Static'!G21 -> 0.4260132471 | J5: ='Scenario 1_Static'!B24 -> 4.946044226 | K5: ='Scenario 1_Static'!B23 -> 18.18433987 | L5: ='Scenario 1_Static'!C24 -> 1.648681409 | M5: ='Scenario 1_Static'!C23 -> 6.061446623
A6: B. Filling (small containers) | B6: =INDEX('Scenario 1_Static'!$B$35:$D$41,MATCH(B$4,'Scenario 1_Static'!$A$35:$A$41, 0), MATCH($A6, 'Scenario 1_Static'!$B$32:$D$32,0)) -> 196.1057514 | C6: =INDEX('Scenario 1_Static'!$B$35:$D$41,MATCH(C$4,'Scenario 1_Static'!$A$35:$A$41, 0), MATCH($A6, 'Scenario 1_Static'!$B$32:$D$32,0)) -> 775.9002361 | D6: =INDEX('Scenario 1_Static'!$B$44:$D$50,MATCH(D$4,'Scenario 1_Static'!$A$44:$A$50, 0), MATCH($A6, 'Scenario 1_Static'!$B$32:$D$32,0)) -> 48.45175446 | E6: =INDEX('Scenario 1_Static'!$B$44:$D$50,MATCH(E$4,'Scenario 1_Static'!$A$44:$A$50, 0), MATCH($A6, 'Scenario 1_Static'!$B$32:$D$32,0)) -> 191.7013013
A7: C. Container Cleaning (drums) | B7: =INDEX('Scenario 1_Static'!$B$35:$D$41,MATCH(B$4,'Scenario 1_Static'!$A$35:$A$41, 0), MATCH($A7, 'Scenario 1_Static'!$B$32:$D$32,0)) -> 0.1976352222 | C7: =INDEX('Scenario 1_Static'!$B$35:$D$41,MATCH(C$4,'Scenario 1_Static'!$A$35:$A$41, 0), MATCH($A7, 'Scenario 1_Static'!$B$32:$D$32,0)) -> 2.299655188 | D7: =INDEX('Scenario 1_Static'!$B$44:$D$50,MATCH(D$4,'Scenario 1_Static'!$A$44:$A$50, 0), MATCH($A7, 'Scenario 1_Static'!$B$32:$D$32,0)) -> 0.0488296401 | E7: =INDEX('Scenario 1_Static'!$B$44:$D$50,MATCH(E$4,'Scenario 1_Static'!$A$44:$A$50, 0), MATCH($A7, 'Scenario 1_Static'!$B$32:$D$32,0)) -> 0.5681747105
A8: Exposure Summary - 50th and 95th Percentile estimates
A9: Scenario 1: PV = 11340 kg/yr
A10: Exposure Point | B10: Mass Concentration [mg/m^3] | D10: Volume Concentration [ppm] | F10: Exposure Days per Year | H10: Exposure Hours per Day | J10: 8-hr TWA | L10: 24-hr TWA
B11: 50th Percentile | C11: 95th Percentile | D11: 50th Percentile | E11: 95th Percentile | F11: Minimum | G11: Maximum | H11: Minimum | I11: Maximum | J11: 50th Percentile | K11: 95th Percentile | L11: 50th Percentile | M11: 95th Percentile
A12: A. Emptying (drums) | B12: =INDEX('Scenario 2_Static'!$B$35:$D$41,MATCH(B$4,'Scenario 2_Static'!$A$35:$A$41, 0), MATCH($A12, 'Scenario 2_Static'!$B$32:$D$32,0)) -> 388.7247781 | C12: =INDEX('Scenario 2_Static'!$B$35:$D$41,MATCH(C$4,'Scenario 2_Static'!$A$35:$A$41, 0), MATCH($A12, 'Scenario 2_Static'!$B$32:$D$32,0)) -> 1498.813392 | D12: =INDEX('Scenario 2_Static'!$B$44:$D$50,MATCH(D$4,'Scenario 2_Static'!$A$44:$A$50, 0), MATCH($A12, 'Scenario 2_Static'!$B$32:$D$32,0)) -> 96.04204552 | E12: =INDEX('Scenario 2_Static'!$B$44:$D$50,MATCH(E$4,'Scenario 2_Static'!$A$44:$A$50, 0), MATCH($A12, 'Scenario 2_Static'!$B$32:$D$32,0)) -> 370.3111098 | F12: ='Scenario 2_Static'!J16 -> 24 | G12: ='Scenario 2_Static'!J11 -> 119 | H12: ='Scenario 2_Static'!J26 -> 0.1188959534 | I12: ='Scenario 2_Static'!J21 -> 0.4275572383 | J12: ='Scenario 2_Static'!B24 -> 4.93224111 | K12: ='Scenario 2_Static'!B23 -> 18.3363493 | L12: ='Scenario 2_Static'!C24 -> 1.64408037 | M12: ='Scenario 2_Static'!C23 -> 6.112116432
A13: B. Filling (small containers) | B13: =INDEX('Scenario 2_Static'!$B$35:$D$41,MATCH(B$4,'Scenario 2_Static'!$A$35:$A$41, 0), MATCH($A13, 'Scenario 2_Static'!$B$32:$D$32,0)) -> 195.5213622 | C13: =INDEX('Scenario 2_Static'!$B$35:$D$41,MATCH(C$4,'Scenario 2_Static'!$A$35:$A$41, 0), MATCH($A13, 'Scenario 2_Static'!$B$32:$D$32,0)) -> 776.5709415 | D13: =INDEX('Scenario 2_Static'!$B$44:$D$50,MATCH(D$4,'Scenario 2_Static'!$A$44:$A$50, 0), MATCH($A13, 'Scenario 2_Static'!$B$32:$D$32,0)) -> 48.30736971 | E13: =INDEX('Scenario 2_Static'!$B$44:$D$50,MATCH(E$4,'Scenario 2_Static'!$A$44:$A$50, 0), MATCH($A13, 'Scenario 2_Static'!$B$32:$D$32,0)) -> 191.8670121
A14: C. Container Cleaning (drums) | B14: =INDEX('Scenario 2_Static'!$B$35:$D$41,MATCH(B$4,'Scenario 2_Static'!$A$35:$A$41, 0), MATCH($A14, 'Scenario 2_Static'!$B$32:$D$32,0)) -> 0.1974679031 | C14: =INDEX('Scenario 2_Static'!$B$35:$D$41,MATCH(C$4,'Scenario 2_Static'!$A$35:$A$41, 0), MATCH($A14, 'Scenario 2_Static'!$B$32:$D$32,0)) -> 2.31313368 | D14: =INDEX('Scenario 2_Static'!$B$44:$D$50,MATCH(D$4,'Scenario 2_Static'!$A$44:$A$50, 0), MATCH($A14, 'Scenario 2_Static'!$B$32:$D$32,0)) -> 0.04878830063 | E14: =INDEX('Scenario 2_Static'!$B$44:$D$50,MATCH(E$4,'Scenario 2_Static'!$A$44:$A$50, 0), MATCH($A14, 'Scenario 2_Static'!$B$32:$D$32,0)) -> 0.571504835

Sheet Exposure Point Summary
A1: Parameter Definition | D1: Exposure Points (from ESD/GS) | K1: General Parameters
A2: Possible Parameters | B2: Variable | D2: Exposure Point | E2: A. Emptying (drums) | G2: B. Filling (small containers) | I2: C. Container Cleaning | K2: Number of Sites | L2: Ns
A3: Saturation Factor Unloading | B3: Fsaturation_unloading | D3: General Methodology | E3: EPA/OPPT Mass Balance Inhalation Model | G3: EPA/OPPT Mass Balance Inhalation Model | I3: EPA/OPPT Mass Balance Inhalation Model | K3: Production Volume | L3: PV
A4: 1,2-DCA Molecular Weight | B4: MW | D4: Input Parameters: | E4: 1,2-DCA Mass Fraction | F4: F12DCA | G4: 1,2-DCA Mass Fraction | H4: F12DCA | I4: 1,2-DCA Mass Fraction | J4: F12DCA | K4: 1,2-DCA Density | L4: rho12DCA
A5: Import Container Volume | B5: Vimport_cont | E5: Molar Volume | F5: Vm | G5: Molar Volume | H5: Vm | I5: Molar Volume | J5: Vm | K5: Hours exposed per day | L5: ED
A6: Fill Rate of Drum | B6: RATEfill_drum | E6: Molecular Weight | F6: MW | G6: Molecular Weight | H6: MW | I6: Molecular Weight | J6: MW | K6: Days exposed per year | L6: EFyearly
A7: 1,2-DCA Vapor Pressure | B7: VP | E7: Unload Rate of Import Containers | F7: Ratefill_drum | G7: Loading Rate of fill Containers | H7: Ratefill_smallcont | I7: Hours exposed per day for Activity | J7: hC | K7: Working years | L7: WY
A8: Gas Constant | B8: R | E8: Hours exposed per day for Activity | F8: hA | G8: Vapor Pressure | H8: VP | I8: Vapor Pressure | J8: VP | K8: Lifetime years | L8: LT
A9: Temperature | B9: T | E9: Vapor Pressure | F9: VP | G9: Ventilation Rate | H9: Q | I9: Ventilation Rate | J9: Q | K9: Averaging time | L9: AT
A10: Production Volume | B10: PV | E10: Ventilation Rate | F10: Q | G10: Mixing Factor | H10: k | I10: Mixing Factor | J10: k | K10: Averaging time over lifetime | L10: ATc
A11: 1,2-DCA Density | B11: r | E11: Mixing Factor | F11: k | G11: Vapor Pressure Correction Factor | H11: X | I11: Vapor Pressure Correction Factor | J11: X | K11: 8-hour Time-weighted average | L11: TWA8hr
A12: Saturation Factor Loading | B12: Fsaturation_loading | E12: Vapor Pressure Correction Factor | F12: X | G12: Temperature | H12: T | I12: Temperature | J12: T | K12: 24-hour Time-weighted Average | L12: TWA24hr
A13: Small Container Volume | B13: Vfill_cont | E13: Temperature | F13: T | G13: Saturation Factor Loading | H13: Fsaturation_Loading | I13: Gas Constant | J13: R | K13: Average Daily Concentration | L13: ADC
A14: Fill Rate of Small Container | B14: RATEfill_smallcont | E14: Saturation Factor Unloading | F14: Fsaturation_unloading | G14: Filling Container Volume | H14: Vfillcont | I14: Air speed | J14: Rateair_speed | K14: Lifetime Average Daily Concentration | L14: LADC
A15: 1,2-DCA Mass Fraction/VP Correction Factor | B15: F12DCA | E15: Import Container Volume | F15: Vimportcont | G15: Gas Constant | H15: R | I15: Diameter of Opening for Container Cleaning | J15: Dopening_cont-cleaning | K15: Subchronic Days exposed per year | L15: EFsubchronic
A16: Air Speed | B16: RATEair_speed | E16: Gas Constant | F16: R | G16: Import Container Volume | H16: Vimportcont | I16: Pressure | J16: P | K16: Subchronic averaging time | L16: ATsc
A17: Diameter of Opening for Container Cleaning | B17: Dopening_cont-cleaning | K17: Subchronic Average Daily Concentration | L17: ADCsubchronic
A18: Pressure | B18: P
A19: Container Loss Fraction | B19: Floss_cont
A20: Number of Sites | B20: Ns

Sheet Exposure Parameters
B2: Turn Monte Carlo On or Off | C2: On
B4: Input Parameter | C4: Symbol | D4: Unit | E4: Deterministic Values | G4: Uncertainty Analysis Distribution Parameters | J4: Distribution Type | L4: Selected Value (Deterministic or @Risk Formula) | M4: Notes/Comments
E5: Value | F5: Basis | G5: Lower Bound | H5: Upper Bound | I5: Mode | K5: @Risk Formulas | P5: On/Off Drop Down
B6: Working Years | C6: WY | D6: years | E6: 36 | F6: Typical | G6: 10.4 | H6: 44 | I6: 36 | J6: Triangular | K6: =_xll.RiskTriang(G6,I6,H6,_xll.RiskStatic(E6)) ->  | L6: =IF($C$2=$P$6, K6, E6) ->  | M6: Based on data from the U.S. Bureau of Labor Statistics (U.S. BLS) Current Population Survey (CPS) and the U.S. Census Bureau Survey of Income and Program Participation (SIPP). | P6: On
B7: Ventilation Rate | C7: Q | D7: ft3/min | E7: 3000 | F7: Typical | G7: 500 | H7: 10000 | I7: 3000 | J7: Triangular | K7: =_xll.RiskTriang(G7,I7,H7,_xll.RiskStatic(E7)) ->  | L7: =IF($C$2=$P$6, K7, E7) ->  | M7: From 1991 CEB Manual | P7: Off
B8: Mixing Factor | C8: k | D8: dimensionless | E8: 0.5 | F8: Typical | G8: 0.1 | H8: 1 | I8: 0.5 | J8: Triangular | K8: =_xll.RiskTriang(G8,I8,H8,_xll.RiskStatic(E8)) ->  | L8: =IF($C$2=$P$6, K8, E8) ->  | M8: From 1991 CEB Manual
B9: Saturation Factor Unloading | C9: Fsaturation_unloading | D9: kg/kg | E9: 0.5 | F9: Typical | G9: 0.5 | H9: 1.45 | I9: 0.5 | J9: Triangular | K9: =_xll.RiskTriang(G9,I9,H9,_xll.RiskStatic(E9)) ->  | M9: AP-42 provided values
B10: Saturation Factor Loading | C10: Fsaturation_loading | D10: kg/kg | E10: 0.5 | F10: Typical | G10: 0.5 | H10: 1.45 | I10: 0.5 | J10: Triangular | K10: =_xll.RiskTriang(G10,I10,H10,_xll.RiskStatic(E10)) ->  | M10: AP-42 provided values
B11: Import Container Volume | C11: Vimport_cont | D11: gal/container | E11: 55 | F11: Typical | G11: 20 | H11: 100 | I11: 55 | J11: Triangular | K11: =_xll.RiskTriang(G11,I11,H11,_xll.RiskStatic(E11)) ->  | M11: Standard EPA values for Vapor Generation Rate/Volatile Air Release Models given as 20 to <100 gallons for drum volume, with 55 gallons as default value. Typically use drums for given throughput as suggested in ESD on Transport and Storage (HERO ID 6393282).
B12: Small Container Volume | C12: Vfill_cont | D12: gal/container | E12: 5 | F12: Typical | G12: 5 | H12: 20 | I12: 5 | J12: Triangular | K12: =_xll.RiskTriang(G12,I12,H12,_xll.RiskStatic(E12)) ->  | M12: Standard EPA values for Vapor Generation Rate/Volatile Air Release Models given as 5 to <20 gallons for small container volume, with 5 gallons as default value.
B13: Air Speed | C13: RATEair_speed | D13: cm/s | E13: 10 | F13: 50th percentile | G13: 1.3 | H13: 202.2 | I13: — | J13: Lognormal | K13: =_xll.RiskLognorm(22.414,19.958,_xll.RiskTruncate(G13,H13),_xll.RiskName(B13),_xll.RiskStatic(E13)) ->  | L13: =IF($C$2=$P$6, K13, E13) ->  | M13: Distribution using EPA's air speed model for industrial uses; converted to ft/min for model use. For industrial facilities, it’s a lognormal distribution with mean of 22.414 cm/s, standard deviation of 19.958 cm/s, max truncated at 202.2 cm/s.
D14: ft/min | E14: =E13*ft_per_cm*60 -> 19.6848 | F14: 50th percentile | G14: =G13*ft_per_cm*60 -> 2.559024 | H14: =H13*ft_per_cm*60 -> 398.026656 | I14: — | J14: Lognormal | K14: =(K13*ft_per_cm*60) ->  | L14: =IF($C$2=$P$6, K14, E14) -> 
B16: Constants and Unit Conversions | C16: Symbol | D16: Value | E16: Unit | F16: Notes/Comments
B17: Number of Sites | C17: Ns | D17: 1 | E17: sites | F17: what-if scenario
B18: Production Volume Assessed | C18: PV_lbs | D18: 2500 | E18: lbs/yr | F18: what-if scenario
B19: Production Volume | C19: PV | D19: =D18/lbs_per_kg -> 1133.982274 | E19: kg/yr | F19: used for calcs
B20: 1,2-DCA Import Mass Fraction | C20: F12DCA | D20: 1 | E20: kg/kg | F20: Also used for vapor pressure correction factor (X)
B21: 1,2-DCA Molar Volume | C21: Vm12DCA | D21: 24.45 | E21: L/mol | F21: Molar Volume at STP
B22: 1,2-DCA Molecular Weight | C22: MW | D22: 98.96 | E22: g/mol | F22: From Final Scope Document
B23: Fill Rate of Drum | C23: RATEfill_drum | D23: 20 | E23: containers/hr | F23: From 1991 CEB Manual
B24: Fill Rate of Small Container | C24: RATEfill_smallcont | D24: 60 | E24: containers/hr | F24: From 1991 CEB Manual
B25: Hours exposed per day | C25: ED | D25: 8 | E25: hrs/day | F25: Assuming a full 8-hr shift
B26: Lifetime years | C26: LT | D26: 78 | E26: years | F26: Average Lifetime years
B27: Averaging time over a lifetime (chronic) | C27: ATc | D27: =D26*365*24 -> 683280 | E27: hours | F27: Converted lifetime years to hours.
B28: Averaging time for subchronic exposure | C28: ATsc | D28: =8*30 -> 240 | E28: hours | F28: Provided by EPA health assessors
B29: Diameter of Opening for Container Cleaning | C29: Dopening_cont-cleaning | D29: 5.08 | E29: cm | F29: From 1991 CEB Manual
B30: 1,2-DCA Vapor Pressure | C30: VP | D30: 78.9 | E30: Torr | F30: Final Scope (mmHg)
B31: 1,2-DCA Density | C31: rho12DCA | D31: 1256.9 | E31: kg/m^3 | F31: Final Scope
B32: Gas Constant | C32: R | D32: 62.36367 | E32: L*torr/mol-K | F32: Universal Gas Constant
B33: Temperature | C33: T | D33: 298 | E33: K | F33: Standard temperature
B34: Pressure | C34: P | D34: 760 | E34: torr | F34: Standard pressure
B35: lb/kg | C35: — | D35: 2.20462 | E35: lb/kg | F35: Conversion
B36: ft/cm | C36: — | D36: 0.032808 | E36: ft/cm | F36: Conversion
B37: m^3/gal | C37: — | D37: 0.00378541 | E37: m^3/gal | F37: Conversion
B38: L/gal | C38: — | D38: 3.7854 | E38: L/gal | F38: Conversion
B39: s/hr | C39: — | D39: 3600 | E39: s/hr | F39: Conversion

Sheet Exposure Calcs
B2: Calculation of Baseline Exposures
B4: Parameter Name | C4: Symbol | D4: Equation | E4: Stochastic Value | F4: Unit
B5: Facility Production Rate | C5: PVsite | D5: PV/Ns | E5: =PV/Ns -> 1133.982274 | F5: kg/site-year
B6: Operating Days per site/Number of Import Containers/Days exposed per year | C6: EFyearly | D6: (PVsite/(rho12DCA*0.00378541 m3/gal*Vimport_cont) | E6: =_xll.RiskOutput("Exposure Days")+IF(ROUNDUP((PV/Ns)/(rho_12DCA*m3_per_gal*V_importcont),0)>250, 250,ROUNDUP((PV/Ns)/(rho_12DCA*m3_per_gal*V_importcont),0)) ->  | F6: days/yr
B7: Vapor generation rate for Activity A (Emptying Drums) | C7: GA | D7: [[Fsaturation_unloading*MW*(Vimport_cont*(3785.4 cm3/gal))*(RATEfill_drum/(3600 s/hr))*F12DCA*(VP)]/(R*T)] ~Vapor generation calculated using AP-42 Loading Model~ | E7: =((Fsat_unload*MW_12DCA*L_per_gal*V_importcont*Rate_filldrum*F_12DCA*VP_12DCA)/(s_per_hr*Temp*R_Ltorr_molK)) ->  | F7: g/s
B8: Activity A volumetric concentration of chemical in air (Emptying drums) | C8: CvA | D8: Lesser of: (170,000*T*GA)/(MW*Q*k) OR (1,000,000*F12DCA*VP)/760 | E8: =_xll.RiskOutput("Cv_A")+IF((170000*Temp*G_A)/(MW_12DCA*Ventilation_rate*Mixing_factor)>((1000000*F_12DCA*VP_12DCA)/760),((1000000*F_12DCA*VP_12DCA)/760),(170000*Temp*G_A)/(MW_12DCA*Ventilation_rate*Mixing_factor)) ->  | F8: ppm
B9: Activity A mass concentration of chemical in air (Emptying drums) | C9: CmA | D9: CvA*MW/Vm | E9: =_xll.RiskOutput("Cm_A")+Cv_A*MW_12DCA/Vm_12DCA ->  | F9: mg/m3
B10: Hours exposed per day for activity A (Emptying Drums) | C10: hA | D10: [(Containers/year)/(EFyearly)]/Ratefill_drum | E10: =1/Rate_filldrum -> 0.05 | F10: hr/day
B11: Vapor generation rate for Activity B (Filling Small Containers) | C11: GB | D11: [[Fsaturation_loading*MW*(Vsmallcont*(3785.4 cm3/gal))*(RATEfill_smallcont/(3600 s/hr))*F12DCA*(VP)]/(R*T)] ~Vapor generation calculated using AP-42 Loading Model~ | E11: =((Fsat_load*MW_12DCA*L_per_gal*V_smallcont*Rate_fillsmallcont*F_12DCA*VP_12DCA)/(s_per_hr*Temp*R_Ltorr_molK)) ->  | F11: g/s
B12: Activity B volumetric concentration of chemical in air (Filling small containers) | C12: CvB | D12: Lesser of: (170,000*T*GB)/(MW*Q*k) OR (1,000,000*F12DCA*VP)/760 | E12: =_xll.RiskOutput("Cv_B")+IF((170000*Temp*G_B)/(MW_12DCA*Ventilation_rate*Mixing_factor)>((1000000*F_12DCA*VP_12DCA)/760),((1000000*F_12DCA*VP_12DCA)/760),(170000*Temp*G_B)/(MW_12DCA*Ventilation_rate*Mixing_factor)) ->  | F12: ppm
B13: Activity B mass concentration of chemical in air (Filling small containers) | C13: CmB | D13: CvB*MW/Vm | E13: =_xll.RiskOutput("Cm_B")+Cv_B*MW_12DCA/Vm_12DCA ->  | F13: mg/m3
B14: Hours exposed per day for activity B (Filling small containers) | C14: hB | D14: V_importcont/V_smallcont/Rate_fillsmallcont | E14: =V_importcont/V_smallcont/Rate_fillsmallcont ->  | F14: hours
B15: Vapor generation rate for Activity C (Container Cleaning) | C15: GC | D15: ~Vapor generation rate calculated using Penetration Model or Mass Transfer Coefficient Model as outlined below~ Penetration Model (if air speed <= 100 ft/min): GC=[[(8.24E-8*(MW^0.835)*F12DCA*VP*((1/29+1/MW)^0.25)*(RATEair_speed^0.5)*(0.25*pi*Dopening_cont-cleaning^2)]/(T^0.05*Dopening_cont-cleaning^0.5*P^0.5)] Mass Transfer Coefficient Model (if air speed >100 ft/min): GC=[[(1.93E-7*(MW^0.78)*F12DCA*VP*((1/29+1/MW)^0.33)*(RATEair_speed^0.78)*(0.25*pi*Dopening_cont-cleaning^2)]/(T^0.4*Dopening_cont-cleaning^0.11*(T^0.5-5.87)^(2/3)] | E15: =IF(Air_speed>100,(0.000000193*POWER(MW_12DCA,0.78)*F_12DCA*VP_12DCA*POWER((1/29)+(1/MW_12DCA),0.33)*POWER(Air_speed,0.78)*(PI()*POWER(D_contcleaning,2)/4))/(POWER(Temp,0.4)*POWER(D_contcleaning,0.11)*POWER(POWER(Temp,0.5)-5.87,2/3)),(0.0000000824*POWER(MW_12DCA,0.835)*F_12DCA*VP_12DCA*POWER((1/29)+(1/MW_12DCA),0.25)*POWER(Air_speed,0.5)*(PI()*POWER(D_contcleaning,2)/4))/(POWER(Temp,0.05)*POWER(D_contcleaning,0.5)*POWER(Pressure_Torr,0.5))) ->  | F15: g/s
B16: Activity C volumetric concentration of chemical in air (Container cleaning) | C16: CvC | D16: Lesser of: (170,000*T*GC)/(MW*Q*k) OR (1,000,000*F12DCA*VP)/760 | E16: =_xll.RiskOutput("Cv_C")+IF((170000*Temp*G_C)/(MW_12DCA*Ventilation_rate*Mixing_factor)>((1000000*F_12DCA*VP_12DCA)/760),((1000000*F_12DCA*VP_12DCA)/760),(170000*Temp*G_C)/(MW_12DCA*Ventilation_rate*Mixing_factor)) ->  | F16: ppm
B17: Activity C mass concentration of chemical in air (Container cleaning) | C17: CmC | D17: CvC*MW/Vm | E17: =_xll.RiskOutput("Cm_C")+Cv_C*MW_12DCA/Vm_12DCA ->  | F17: mg/m3
B18: Hours exposed per day for activity C (Container Cleaning) | C18: hC | D18: [(Containers/year)/(EFyearly)]/Ratefill_drum | E18: =1/Rate_filldrum -> 0.05 | F18: hr/day
B19: Combined activity times | C19: hsum | D19: hA+hB+hC | E19: =_xll.RiskOutput("Hours exposed per day")+hA+hB+hC ->  | F19: hr/day
B20: Averaging time | C20: AT | D20: WY * 365 days/yr * 24 hr/day | E20: =WY*365*24 ->  | F20: hours
B21: Time-weighted average (8-hr) | C21: TWA8hr | D21: [(CmA * hA) + (CmB * hB) + (CmC * hC)] / 8 hrs | E21: =_xll.RiskOutput("TWA_8hr")+((Cm_A*hA)+(Cm_B*hB)+(Cm_C*hC))/8 ->  | F21: mg/m3
B22: Time-weighted average (24-hr) | C22: TWA24hr | D22: [(CmA * hA) + (CmB * hB) + (CmC * hC)] / 24 hrs | E22: =_xll.RiskOutput("TWA_24hr")+((Cm_A*hA)+(Cm_B*hB)+(Cm_C*hC))/24 ->  | F22: mg/m3
B23: Average daily concentration | C23: ADCchronic | D23: (TWA8hr * ED * EFyearly * WY) / AT | E23: =_xll.RiskOutput("ADC_chronic")+(TWA_8hr*ED*EF_yearly*WY)/AT ->  | F23: mg/m3
B24: Lifetime average daily concentration | C24: LADC | D24: (TWA8hr * ED * EFyearly * WY) / ATc | E24: =_xll.RiskOutput("LADC")+(TWA_8hr*ED*EF_yearly*WY)/ATc ->  | F24: mg/m3
B25: Days exposed for subchronic exposure | C25: EFsubchronic | D25: IF(EFyearly < 22 days/yr, EFyearly, 22 days/yr) | E25: =IF(EF_yearly<22, EF_yearly,22) ->  | F25: days
B26: Subchronic average daily concentration | C26: ADCsubchronic | D26: (TWA8hr * ED * EFsubchronic) / ATsc | E26: =_xll.RiskOutput("ADC_subchronic")+(TWA_8hr*ED*EF_subchronic)/ATsc ->  | F26: mg/m3

Sheet Exposure Results
A1: What-If Scenario
A2: Production Volume Assessed (kg/yr) | B2: =ROUND(PV,0) -> 1134
A3: Number of Sites | B3: =Ns -> 1
A5: Monte Carlo Simulation Parameters
A6: Number of Iterations | B6: 100000
A7: Sampling Method | B7: Latin Hypercube
B9: Daily Concentrations | F9: Exposure Days per Year & Number of Import Containers
A10: Daily Concentrations (mg/m3) | B10: Average Daily Concentration (ADC) | C10: Lifetime Average Daily Concentration (LADC) | D10: Subchronic Average Daily Concentration (ADCsubchronic) | F10: EFyearly (days/yr)
A11: Maximum | B11: =_xll.RiskMax(ADC_chronic) ->  | C11: =_xll.RiskMax(LADC) ->  | D11: =_xll.RiskMax(ADC_subchronic) ->  | F11: Maximum | G11: =_xll.RiskMax(EF_yearly) -> 
A12: 99th Percentile | B12: =_xll.RiskPercentile(ADC_chronic,0.99) ->  | C12: =_xll.RiskPercentile(LADC,0.99) ->  | D12: =_xll.RiskPercentile(ADC_subchronic,0.99) ->  | F12: 99th Percentile | G12: =_xll.RiskPercentile(EF_yearly,0.99) -> 
A13: 95th Percentile | B13: =_xll.RiskPercentile(ADC_chronic,0.95) ->  | C13: =_xll.RiskPercentile(LADC,0.95) ->  | D13: =_xll.RiskPercentile(ADC_subchronic,0.95) ->  | F13: 95th Percentile | G13: =_xll.RiskPercentile(EF_yearly,0.95) -> 
A14: 50th Percentile | B14: =_xll.RiskPercentile(ADC_chronic,0.5) ->  | C14: =_xll.RiskPercentile(LADC,0.5) ->  | D14: =_xll.RiskPercentile(ADC_subchronic,0.5) ->  | F14: 50th Percentile | G14: =_xll.RiskPercentile(EF_yearly,0.5) -> 
A15: 5th Percentile | B15: =_xll.RiskPercentile(ADC_chronic,0.05) ->  | C15: =_xll.RiskPercentile(LADC,0.05) ->  | D15: =_xll.RiskPercentile(ADC_subchronic,0.05) ->  | F15: 5th Percentile | G15: =_xll.RiskPercentile(EF_yearly,0.05) -> 
A16: Minimum | B16: =_xll.RiskMin(ADC_chronic) ->  | C16: =_xll.RiskMin(LADC) ->  | D16: =_xll.RiskMin(ADC_subchronic) ->  | F16: Minimum | G16: =_xll.RiskMin(EF_yearly) -> 
A17: Mean | B17: =_xll.RiskMean(ADC_chronic) ->  | C17: =_xll.RiskMean(LADC) ->  | D17: =_xll.RiskMean(ADC_subchronic) ->  | F17: Mean | G17: =ROUNDUP(_xll.RiskMean(EF_yearly),0) -> 
B19: Time-Weighted Averages | F19: Total Sum of hours for activities
A20: Time-Weighted Average (mg/m3) | B20: TWA8hr | C20: TWA24hr | F20: hsum (hr/day)
A21: Maximum | B21: =_xll.RiskMax(TWA_8hr) ->  | C21: =_xll.RiskMax(TWA_24hr) ->  | F21: Maximum | G21: =_xll.RiskMax(h_sum) -> 
A22: 99th Percentile | B22: =_xll.RiskPercentile(TWA_8hr,0.99) ->  | C22: =_xll.RiskPercentile(TWA_24hr,0.99) ->  | F22: 99th Percentile | G22: =_xll.RiskPercentile(h_sum,0.99) -> 
A23: 95th Percentile | B23: =_xll.RiskPercentile(TWA_8hr,0.95) ->  | C23: =_xll.RiskPercentile(TWA_24hr,0.95) ->  | F23: 95th Percentile | G23: =_xll.RiskPercentile(h_sum,0.95) -> 
A24: 50th Percentile | B24: =_xll.RiskPercentile(TWA_8hr,0.5) ->  | C24: =_xll.RiskPercentile(TWA_24hr,0.5) ->  | F24: 50th Percentile | G24: =_xll.RiskPercentile(h_sum,0.5) -> 
A25: 5th Percentile | B25: =_xll.RiskPercentile(TWA_8hr,0.05) ->  | C25: =_xll.RiskPercentile(TWA_24hr,0.05) ->  | F25: 5th Percentile | G25: =_xll.RiskPercentile(h_sum,0.05) -> 
A26: Minimum | B26: =_xll.RiskMin(TWA_8hr) ->  | C26: =_xll.RiskMin(TWA_24hr) ->  | F26: Minimum | G26: =_xll.RiskMin(h_sum) -> 
A27: Mean | B27: =_xll.RiskMean(TWA_8hr) ->  | C27: =_xll.RiskMean(TWA_24hr) ->  | F27: Mean | G27: =_xll.RiskMean(h_sum) -> 
B31: Exposure Point
A32: Exposure Point | B32: A. Emptying (drums) | C32: B. Filling (small containers) | D32: C. Container Cleaning (drums)
A34: Mass Concentration (mg/m3) | B34: CmA | C34: CmB | D34: CmC
A35: Maximum | B35: =_xll.RiskMax(Cm_A) ->  | C35: =_xll.RiskMax(Cm_B) ->  | D35: =_xll.RiskMax(Cm_C) -> 
A36: 99th Percentile | B36: =_xll.RiskPercentile(Cm_A,0.99) ->  | C36: =_xll.RiskPercentile(Cm_B,0.99) ->  | D36: =_xll.RiskPercentile(Cm_C,0.99) -> 
A37: 95th Percentile | B37: =_xll.RiskPercentile(Cm_A,0.95) ->  | C37: =_xll.RiskPercentile(Cm_B,0.95) ->  | D37: =_xll.RiskPercentile(Cm_C,0.95) -> 
A38: 50th Percentile | B38: =_xll.RiskPercentile(Cm_A,0.5) ->  | C38: =_xll.RiskPercentile(Cm_B,0.5) ->  | D38: =_xll.RiskPercentile(Cm_C,0.5) -> 
A39: 5th Percentile | B39: =_xll.RiskPercentile(Cm_A,0.05) ->  | C39: =_xll.RiskPercentile(Cm_B,0.05) ->  | D39: =_xll.RiskPercentile(Cm_C,0.05) -> 
A40: Minimum | B40: =_xll.RiskMin(Cm_A) ->  | C40: =_xll.RiskMin(Cm_B) ->  | D40: =_xll.RiskMin(Cm_C) -> 
A41: Mean | B41: =_xll.RiskMean(Cm_A) ->  | C41: =_xll.RiskMean(Cm_B) ->  | D41: =_xll.RiskMean(Cm_C) -> 
A43: Volume Concentration (ppm) | B43: CvA | C43: CvB | D43: CvC
A44: Maximum | B44: =_xll.RiskMax(Cv_A) ->  | C44: =_xll.RiskMax(Cv_B) ->  | D44: =_xll.RiskMax(Cv_C) -> 
A45: 99th Percentile | B45: =_xll.RiskPercentile(Cv_A,0.99) ->  | C45: =_xll.RiskPercentile(Cv_B,0.99) ->  | D45: =_xll.RiskPercentile(Cv_C,0.99) -> 
A46: 95th Percentile | B46: =_xll.RiskPercentile(Cv_A,0.95) ->  | C46: =_xll.RiskPercentile(Cv_B,0.95) ->  | D46: =_xll.RiskPercentile(Cv_C,0.95) -> 
A47: 50th Percentile | B47: =_xll.RiskPercentile(Cv_A,0.5) ->  | C47: =_xll.RiskPercentile(Cv_B,0.5) ->  | D47: =_xll.RiskPercentile(Cv_C,0.5) -> 
A48: 5th Percentile | B48: =_xll.RiskPercentile(Cv_A,0.05) ->  | C48: =_xll.RiskPercentile(Cv_B,0.05) ->  | D48: =_xll.RiskPercentile(Cv_C,0.05) -> 
A49: Minimum | B49: =_xll.RiskMin(Cv_A) ->  | C49: =_xll.RiskMin(Cv_B) ->  | D49: =_xll.RiskMin(Cv_C) -> 
A50: Mean | B50: =_xll.RiskMean(Cv_A) ->  | C50: =_xll.RiskMean(Cv_B) ->  | D50: =_xll.RiskMean(Cv_C) -> 

Sheet Scenario 1_Static
A1: What-If Scenario
A2: Production Volume Assessed (kg/yr) | B2: 1134
A3: Number of Sites | B3: 1
A5: Monte Carlo Simulation Parameters
A6: Number of Iterations | B6: 100000
A7: Sampling Method | B7: Latin Hypercube
B9: Daily Concentrations | F9: Exposure Days per Year & Number of Import Containers
A10: Daily Concentrations (mg/m3) | B10: Average Daily Concentration (ADC) | C10: Lifetime Average Daily Concentration (LADC) | D10: Subchronic Average Daily Concentration (ADCsubchronic) | F10: EFyearly (days/yr)
A11: Maximum | B11: 0.6711716072 | C11: 0.3063895483 | D11: 24.49776366 | F11: Maximum | G11: 12
A12: 99th Percentile | B12: 0.1279146729 | C12: 0.05160382149 | D12: 4.668885562 | F12: 99th Percentile | G12: 10
A13: 95th Percentile | B13: 0.07297733328 | C13: 0.0291007266 | D13: 2.663672665 | F13: 95th Percentile | G13: 8
A14: 50th Percentile | B14: 0.02124404458 | C14: 0.00804003512 | D14: 0.7754076271 | F14: 50th Percentile | G14: 5
A15: 5th Percentile | B15: 0.008133600788 | C15: 0.002733791455 | D15: 0.2968764288 | F15: 5th Percentile | G15: 3
A16: Minimum | B16: 0.00310755758 | C16: 0.0007082637095 | D16: 0.1134258517 | F16: Minimum | G16: 3
A17: Mean | B17: 0.02852548238 | C17: 0.01101698741 | D17: 1.041180107 | F17: Mean | G17: 5
B19: Time-Weighted Averages | F19: Total Sum of hours for activities
A20: Time-Weighted Average (mg/m3) | B20: TWA8hr | C20: TWA24hr | F20: hsum (hr/day)
A21: Maximum | B21: 175.9817017 | C21: 58.66056723 | F21: Maximum | G21: 0.4260132471
A22: 99th Percentile | B22: 32.52037585 | C22: 10.84012528 | F22: 99th Percentile | G22: 0.3548846425
A23: 95th Percentile | B23: 18.18433987 | C23: 6.061446623 | F23: 95th Percentile | G23: 0.3075701434
A24: 50th Percentile | B24: 4.946044226 | C24: 1.648681409 | F24: 50th Percentile | G24: 0.2000294726
A25: 5th Percentile | B25: 1.650377345 | C25: 0.5501257816 | F25: 5th Percentile | G25: 0.1451887822
A26: Minimum | B26: 0.3601732846 | C26: 0.1200577615 | F26: Minimum | G26: 0.1186372688
A27: Mean | B27: 6.829995333 | C27: 2.276665111 | F27: Mean | G27: 0.209965751
B31: Exposure Point
A32: Exposure Point | B32: A. Emptying (drums) | C32: B. Filling (small containers) | D32: C. Container Cleaning (drums)
A34: Mass Concentration (mg/m3) | B34: CmA | C34: CmB | D34: CmC
A35: Maximum | B35: 12903.53714 | C35: 7294.122433 | D35: 82.10436032
A36: 99th Percentile | B36: 2667.073035 | C36: 1417.367222 | D36: 7.12035471
A37: 95th Percentile | B37: 1477.798656 | C37: 775.9002361 | D37: 2.299655188
A38: 50th Percentile | B38: 388.5339734 | C38: 196.1057514 | D38: 0.1976352222
A39: 5th Percentile | B39: 124.0663632 | C39: 60.49878379 | D39: 0.06397698098
A40: Minimum | B40: 28.82865422 | C40: 19.49962378 | D40: 0.01465022549
A41: Mean | B41: 546.7443208 | C41: 280.0900505 | D41: 0.5440529969
A43: Volume Concentration (ppm) | B43: CvA | C43: CvB | D43: CvC
A44: Maximum | B44: 3188.070766 | C44: 1802.15535 | D44: 20.28548514
A45: 99th Percentile | B45: 658.9524627 | C45: 350.1882434 | D45: 1.759222642
A46: 95th Percentile | B46: 365.1190091 | C46: 191.7013013 | D46: 0.5681747105
A47: 50th Percentile | B47: 95.9949035 | C47: 48.45175446 | D47: 0.0488296401
A48: 5th Percentile | B48: 30.65301718 | C48: 14.94740565 | D48: 0.01580676218
A49: Minimum | B49: 7.122681849 | C49: 4.817762746 | D49: 0.003619624224
A50: Mean | B50: 135.0838586 | C50: 69.2017152 | D50: 0.1344189144

Sheet Scenario 2_Static
A1: What-If Scenario
A2: Production Volume Assessed (kg/yr) | B2: 11340
A3: Number of Sites | B3: 1
A5: Monte Carlo Simulation Parameters
A6: Number of Iterations | B6: 100000
A7: Sampling Method | B7: Latin Hypercube
B9: Daily Concentrations (mg/m3) | E9: Daily Concentrations (ppm) | I9: Exposure Days per Year & Number of Import Containers
A10: Daily Concentrations | B10: Average Daily Concentration (ADC) | C10: Lifetime Average Daily Concentration (LADC) | D10: Subchronic Average Daily Concentration (ADCsubchronic) | E10: Average Daily Concentration (ADC) | F10: Lifetime Average Daily Concentration (LADC) | G10: Subchronic Average Daily Concentration (ADCsubchronic) | I10: EFyearly (days/yr)
A11: Maximum | B11: 6.523753 | C11: 3.060176263 | D11: 147.2254439 | E11: =B11*24.45/98.96 -> 1.611820542 | F11: =C11*24.45/98.96 -> 0.7560762898 | G11: 36.37492019 | I11: Maximum | J11: 119
A12: 99th Percentile | B12: 1.159782184 | C12: 0.473541621 | D12: 24.45439401 | E12: =B12*24.45/98.96 -> 0.2865468309 | F12: =C12*24.45/98.96 -> 0.1169977024 | G12: =D12*24.45/98.96 -> 6.041935465 | I12: 99th Percentile | J12: 95
A13: 95th Percentile | B13: 0.6648169992 | C13: 0.2641687441 | D13: 13.44665615 | E13: 0.1642560189 | F13: 0.0652680456 | G13: 3.322258922 | I13: 95th Percentile | J13: 75
A14: 50th Percentile | B14: 0.1921944874 | C14: 0.07281320511 | D14: 3.616976814 | E14: 0.04748540033 | F14: 0.01798992386 | G14: 0.8936447362 | I14: 50th Percentile | J14: 42
A15: 5th Percentile | B15: 0.07448906524 | C15: 0.02481044885 | D15: 1.214756142 | E15: 0.01840397782 | F15: 0.006129905763 | G15: 0.3001292207 | I15: 5th Percentile | J15: 28
A16: Minimum | B16: 0.03117426648 | C16: 0.006947979685 | D16: 0.318089033 | E16: 0.007702211151 | F16: 0.001716634027 | G16: 0.07859010566 | I16: Minimum | J16: 24
A17: Mean | B17: 0.2584039108 | C17: 0.09986215121 | D17: 5.023873209 | E17: 0.06384373098 | F17: 0.02467289407 | G17: 1.241245958 | I17: Mean | J17: 46
B19: Time-Weighted Averages | I19: Total Sum of hours for activities
A20: Time-Weighted Average (mg/m3) | B20: TWA8hr | C20: TWA24hr | I20: hsum (hr/day)
A21: Maximum | B21: 200.7619689 | C21: 66.9206563 | I21: Maximum | J21: 0.4275572383
A22: 99th Percentile | B22: 33.34690093 | C22: 11.11563364 | I22: 99th Percentile | J22: 0.3546048404
A23: 95th Percentile | B23: 18.3363493 | C23: 6.112116432 | I23: 95th Percentile | J23: 0.3077309984
A24: 50th Percentile | B24: 4.93224111 | C24: 1.64408037 | I24: 50th Percentile | J24: 0.1998936911
A25: 5th Percentile | B25: 1.656485649 | C25: 0.5521618829 | I25: 5th Percentile | J25: 0.145382566
A26: Minimum | B26: 0.4337577722 | C26: 0.1445859241 | I26: Minimum | J26: 0.1188959534
A27: Mean | B27: 6.850736194 | C27: 2.283578731 | I27: Mean | J27: 0.2099563978
B31: Exposure Point
A32: Exposure Point | B32: A. Emptying (drums) | C32: B. Filling (small containers) | D32: C. Container Cleaning (drums)
A34: Mass Concentration (mg/m3) | B34: CmA | C34: CmB | D34: CmC
A35: Maximum | B35: 16056.82762 | C35: 8848.799375 | D35: 47.38076237
A36: 99th Percentile | B36: 2728.664567 | C36: 1422.549593 | D36: 6.861972261
A37: 95th Percentile | B37: 1498.813392 | C37: 776.5709415 | D37: 2.31313368
A38: 50th Percentile | B38: 388.7247781 | C38: 195.5213622 | D38: 0.1974679031
A39: 5th Percentile | B39: 124.2115435 | C39: 60.68965461 | D39: 0.06440746147
A40: Minimum | B40: 31.89836266 | C40: 19.59553528 | D40: 0.01611394347
A41: Mean | B41: 547.979004 | C41: 280.5158869 | D41: 0.5388698128
A43: Volume Concentration (ppm) | B43: CvA | C43: CvB | D43: CvC
A44: Maximum | B44: 3967.152741 | C44: 2186.268641 | D44: 11.70634236
A45: 99th Percentile | B45: 674.1698531 | C45: 351.4686493 | D45: 1.695384214
A46: 95th Percentile | B46: 370.3111098 | C46: 191.8670121 | D46: 0.571504835
A47: 50th Percentile | B47: 96.04204552 | C47: 48.30736971 | D47: 0.04878830063
A48: 5th Percentile | B48: 30.68888682 | C48: 14.99456402 | D48: 0.01591312079
A49: Minimum | B49: 7.881113248 | C49: 4.841459556 | D49: 0.003981264328
A50: Mean | B50: 135.3889112 | C50: 69.30692638 | D50: 0.1331383076
